{"text_format":"3","workbook":"xlsx","n_sheets":2,"sheets":["Início","Fatura do Serviço"],"not_rendered":{"images":1,"defined_names":1},"read":"whole","date_system":"1900"}

{"sheet":"Início","index":0,"n_rows":8,"n_cols":2,"rows_kept":8}
[null,"SOBRE ESTE MODELO"]
[null,"Use este modelo para criar uma Fatura de Serviços."]
[null,"Preencha o número da fatura, a data, o nome da empresa, o endereço, o slogan e os detalhes para cobrança."]
[null,"Digite as informações nas tabelas."]
[null,"O total é calculado automaticamente para você."]
[null,"Observação: "]
[null,"Instruções adicionais foram fornecidas na coluna A, na planilha FATURA DE SERVIÇOS. Este texto está oculto de propósito. Para removê-lo, selecione a coluna A e selecione Excluir. Para reexibir o texto, selecione a coluna A e altere a cor da fonte."]
[null,"Para saber mais sobre tabelas, pressione SHIFT e F10 em uma tabela, selecione a opção TABLE e, em seguida, selecione TEXTO ALTERNATIVO."]

{"sheet":"Fatura do Serviço","index":1,"n_rows":44,"n_cols":5,"rows_kept":44,"merged":[[0,1,0,2],[0,3,0,4],[2,1,2,3],[3,1,3,3],[4,1,4,2],[5,1,5,2],[6,1,6,2],[7,1,7,2],[41,1,41,2],[41,3,41,4],[43,1,43,4]]}
[null,"O espaço reservado para o Logotipo está nesta célula.",null,"FATURA"]
[]
[null,"Nome da empresa"]
[null,"Slogan da empresa"]
[null,"Endereço",null,"Nº DA FATURA","Nº"]
[null,"Cidade, estado, CEP",null,"DATA ",{"$f":"TODAY()","v":"2022-05-06"}]
[null,"Telefone Fax",null,"ID DO CLIENTE ","ID"]
[null,"Email"]
[null,"PARA","Nome"]
[null,null,"Nome da empresa"]
[null,null,"Endereço"]
[null,null,"Cidade, estado, CEP"]
[null,null,"Telefone"]
[null,"VENDEDOR","SERVIÇO","TERMOS DE PAGAMENTO","DATA DE PAGAMENTO"]
[{"$nulls":3},"Pagar ao receber"]
[]
[null,"QUANTIDADE","DESCRIÇÃO","PREÇO UNITÁRIO","TOTAL DA LINHA"]
[{"$nulls":4},{"$f":"IF(SUM(B18)>0,SUM(B18*'Fatura do Serviço'!$D18),\"\")","v":""}]
[{"$nulls":4},{"$f":"IF(SUM(B19)>0,SUM(B19*'Fatura do Serviço'!$D19),\"\")","v":""}]
[{"$nulls":4},{"$f":"IF(SUM(B20)>0,SUM(B20*'Fatura do Serviço'!$D20),\"\")","v":""}]
[{"$nulls":4},{"$f":"IF(SUM(B21)>0,SUM(B21*'Fatura do Serviço'!$D21),\"\")","v":""}]
[{"$nulls":4},{"$f":"IF(SUM(B22)>0,SUM(B22*'Fatura do Serviço'!$D22),\"\")","v":""}]
[{"$nulls":4},{"$f":"IF(SUM(B23)>0,SUM(B23*'Fatura do Serviço'!$D23),\"\")","v":""}]
[{"$nulls":4},{"$f":"IF(SUM(B24)>0,SUM(B24*'Fatura do Serviço'!$D24),\"\")","v":""}]
[{"$nulls":4},{"$f":"IF(SUM(B25)>0,SUM(B25*'Fatura do Serviço'!$D25),\"\")","v":""}]
[{"$nulls":4},{"$f":"IF(SUM(B26)>0,SUM(B26*'Fatura do Serviço'!$D26),\"\")","v":""}]
[{"$nulls":4},{"$f":"IF(SUM(B27)>0,SUM(B27*'Fatura do Serviço'!$D27),\"\")","v":""}]
[{"$nulls":4},{"$f":"IF(SUM(B28)>0,SUM(B28*'Fatura do Serviço'!$D28),\"\")","v":""}]
[{"$nulls":4},{"$f":"IF(SUM(B29)>0,SUM(B29*'Fatura do Serviço'!$D29),\"\")","v":""}]
[{"$nulls":4},{"$f":"IF(SUM(B30)>0,SUM(B30*'Fatura do Serviço'!$D30),\"\")","v":""}]
[{"$nulls":4},{"$f":"IF(SUM(B31)>0,SUM(B31*'Fatura do Serviço'!$D31),\"\")","v":""}]
[{"$nulls":4},{"$f":"IF(SUM(B32)>0,SUM(B32*'Fatura do Serviço'!$D32),\"\")","v":""}]
[{"$nulls":4},{"$f":"IF(SUM(B33)>0,SUM(B33*'Fatura do Serviço'!$D33),\"\")","v":""}]
[{"$nulls":4},{"$f":"IF(SUM(B34)>0,SUM(B34*'Fatura do Serviço'!$D34),\"\")","v":""}]
[{"$nulls":4},{"$f":"IF(SUM(B35)>0,SUM(B35*'Fatura do Serviço'!$D35),\"\")","v":""}]
[{"$nulls":4},{"$f":"IF(SUM(B36)>0,SUM(B36*'Fatura do Serviço'!$D36),\"\")","v":""}]
[{"$nulls":4},{"$f":"IF(SUM(B37)>0,SUM(B37*'Fatura do Serviço'!$D37),\"\")","v":""}]
[{"$nulls":3},"SUBTOTAL",{"$f":"IF(SUM(E18:E37)>0,SUM(E18:E37),\"\")","v":""}]
[{"$nulls":3},"IMPOSTO"]
[{"$nulls":3},"TOTAL",{"$f":"IF(SUM(E38)>0,SUM((E38*E39)+E38),\"\")","v":""}]
[]
[null,"Emitir todos os cheques nominais à ordem de",null,{"$f":"B3","v":"Nome da empresa"}]
[]
[null,"AGRADECEMOS A PREFERÊNCIA!"]